Workbook

Sheet Začíname
B1: INFORMÁCIE O TEJTO ŠABLÓNE
B2: Pomocou tohto zošita rozpočtu podujatia môžete sledovať vzniknuté výdavky a získané príjmy z podujatia.
B3: Vyplňte názov podujatia a zadajte podrobnosti do tabuliek v hárkoch Výdavky a Príjmy.
B4: Celkové výdavky a celkové príjmy sa vypočítajú automaticky.
B5: Súhrn ziskov a strát a graf v hárku Súhrn ziskov a strát sa aktualizujú automaticky.
B6: Poznámka:
B7: V každom hárku sú v stĺpci A uvedené ďalšie pokyny. Tento text je zámerne skrytý. Ak chcete text odstrániť, vyberte stĺpec A a potom stlačte kláves ODSTRÁNIŤ. Ak chcete text zobraziť, vyberte stĺpec A a potom zmeňte farbu písma.
B8: Ak chcete získať ďalšie informácie o tabuľkách, v tabuľke stlačte kláves SHIFT a potom kláves F10, vyberte možnosť TABUĽKA a potom vyberte položku ALTERNATÍVNY TEXT.

Sheet Výdavky
A1: Do príslušných tabuliek tohto hárka zadajte odhadované a skutočné výdavky pre jednotlivé kategórie a úpravou textu Názov podujatia v bunke D1 prispôsobte nadpis tohto hárka a ostatných hárkov. V bunke H1 je uvedený podnadpis tohto hárka. V bunkách v tomto stĺpci na nachádzajú užitočné pokyny na používanie tohto hárka. Ďalší pokyn je v bunke A3. | B1: Rozpočet podujatia Názov podujatia | H1: VÝDAVKY
A3: V bunke napravo je označenie Celkové výdavky, v bunke G3 je označenie Odhadované a v bunke H3 je označenie Skutočné. | B3: CELKOVÉ VÝDAVKY | G3: Odhadované | H3: Skutočné
A4: Celkové odhadované výdavky v bunke G4 a celkové skutočné výdavky v bunke H4 sa vypočítajú automaticky. Ďalší pokyn je v bunke A6. | G4: =SUM(C11,C19,C25,C32,G11,G19,G24) -> 882.00 EUR | H4: =SUM(D11,D19,D25,D32,H11,H19,H24) -> 333.00 EUR
A6: Do tabuľky začínajúcej v bunke napravo zadajte výdavky na priestory a do tabuľky začínajúcej v bunke F6 zadajte výdavky na občerstvenie. Ďalší pokyn je v bunke A13. | B6: Priestory | C6: Odhadované | D6: Skutočné | F6: Občerstvenie | G6: Odhadované | H6: Skutočné
B7: Poplatky za miestnosť a sálu | C7: 500.00 EUR | F7: Strava
B8: Personál priestorov | F8: Nápoje | G8: 20.00 EUR
B9: Vybavenie | F9: Obrusy | H9: 20.00 EUR
B10: Stoly a stoličky | F10: Personál a výpomoc
B11: Celková hodnota | C11: =SUBTOTAL(109,VýdavkyNaPriestory[Odhadované]) -> 500.00 EUR | D11: =SUBTOTAL(109,VýdavkyNaPriestory[Skutočné]) -> 0.00 EUR | F11: Celková hodnota | G11: =SUBTOTAL(109,VýdavkyNaObčerstvenie[Odhadované]) -> 20.00 EUR | H11: =SUBTOTAL(109,VýdavkyNaObčerstvenie[Skutočné]) -> 20.00 EUR
A13: Do tabuľky začínajúcej v bunke napravo zadajte výdavky na výzdobu a do tabuľky začínajúcej v bunke F13 zadajte výdavky na program. Ďalší pokyn je v bunke A21. | B13: Výzdoba | C13: Odhadované | D13: Skutočné | F13: Program | G13: Odhadované | H13: Skutočné
B14: Kvety | C14: 200.00 EUR | D14: 300.00 EUR | F14: Vystupujúci
B15: Sviečky | F15: Moderátori | G15: 30.00 EUR
B16: Osvetlenie | F16: Cestovné
B17: Balóny | F17: Hotel
B18: Papierové materiály | F18: Iné
B19: Celková hodnota | C19: =SUBTOTAL(109,VýdavkyNaVýzdoba[Odhadované]) -> 200.00 EUR | D19: =SUBTOTAL(109,VýdavkyNaVýzdoba[Skutočné]) -> 300.00 EUR | F19: Celková hodnota | G19: =SUBTOTAL(109,VýdavkyNaProgram[Odhadované]) -> 30.00 EUR | H19: =SUBTOTAL(109,VýdavkyNaProgram[Skutočné]) -> 0.00 EUR
A21: Do tabuľky začínajúcej v bunke napravo zadajte výdavky na propagácia a do tabuľky začínajúcej v bunke F21 zadajte výdavky na ceny. Ďalší pokyn sa nachádza v bunke A27. | B21: Propagácia | C21: Odhadované | D21: Skutočné | F21: Ceny | G21: Odhadované | H21: Skutočné
B22: Grafické práce | F22: Stuhy, plakety a trofeje
B23: Fotokopírovanie a tlač | C23: 20.00 EUR | F23: Dary | G23: 100.00 EUR
B24: Poštovné | F24: Celková hodnota | G24: =SUBTOTAL(109,VýdavkyNaCeny[Odhadované]) -> 100.00 EUR | H24: =SUBTOTAL(109,VýdavkyNaCeny[Skutočné]) -> 0.00 EUR
B25: Celková hodnota | C25: =SUBTOTAL(109,VýdavkyNaPropagácia[Odhadované]) -> 20.00 EUR | D25: =SUBTOTAL(109,VýdavkyNaPropagácia[Skutočné]) -> 0.00 EUR
A27: Do tabuľky začínajúcej v bunke napravo zadajte rôzne výdavky. | B27: Rôzne | C27: Odhadované | D27: Skutočné
B28: Telefón | D28: 13.00 EUR
B29: Doprava | C29: 12.00 EUR
B30: Kancelárske potreby
B31: Faxové služby
B32: Celková hodnota | C32: =SUBTOTAL(109,RôzneVýdavky[Odhadované]) -> 12.00 EUR | D32: =SUBTOTAL(109,RôzneVýdavky[Skutočné]) -> 13.00 EUR

Sheet Príjmy
A1: Do príslušných tabuliek tohto hárka zadajte odhadované a skutočné príjmy pre jednotlivé kategórie. V bunkách napravo sa automaticky aktualizuje nadpis hárka. V bunke G1 je podnadpis. V bunkách v tomto stĺpci na nachádzajú užitočné pokyny na používanie tohto hárka. Ďalší pokyn je v bunke A3. | B1: =Výdavky!B1 -> Rozpočet podujatia Názov podujatia | G1: PRÍJMY
A3: V bunke napravo je označenie Celkové príjmy, v bunke F3 je označenie Odhadované a v bunke G3 je označenie Skutočné. | B3: CELKOVÉ PRÍJMY | F3: Odhadované | G3: Skutočné
A4: Celkové odhadované príjmy v bunke F4 a celkové skutočné príjmy v bunke G4 sa vypočítajú automaticky. | F4: =SUM(Vstupenky[[#Totals],[Odhadovaná príjmy]],ReklamyVPrograme[[#Totals],[Odhadovaná príjmy]],VystavovateliaAPredajcovia[[#Totals],[Odhadovaná príjmy]],PredajPoložiek[[#Totals],[Odhadovaná príjmy]]) -> 1,936.00 EUR | G4: =SUM(Vstupenky[[#Totals],[Skutočné príjmy]],ReklamyVPrograme[[#Totals],[Skutočné príjmy]],VystavovateliaAPredajcovia[[#Totals],[Skutočné príjmy]],PredajPoložiek[[#Totals],[Skutočné príjmy]]) -> 1,831.00 EUR
A5: V bunke napravo je označenie Vstupenky. | B5: VSTUPENKY
A6: Do tabuľky začínajúcej v bunke napravo zadajte odhadovaný a skutočný počet vstupeniek a ceny vstupeniek. Odhadované a skutočné príjmy zo vstupeniek sa vypočítajú automaticky. Ďalší pokyn je v bunke A11. | B6: Odhadovaný počet | C6: Skutočný počet | D6: Typ | E6: Cena | F6: Odhadovaná príjmy | G6: Skutočné príjmy
B7: 300 | C7: 278 | D7: Dospelí | E7: 5.00 EUR | F7: =B7*E7 -> 1,500.00 EUR | G7: =C7*E7 -> 1,390.00 EUR
B8: 197 | C8: 195 | D8: Deti | E8: 2.00 EUR | F8: =B8*E8 -> 394.00 EUR | G8: =C8*E8 -> 390.00 EUR
B9: 42 | C9: 51 | D9: Iné | E9: 1.00 EUR | F9: =B9*E9 -> 42.00 EUR | G9: =C9*E9 -> 51.00 EUR
B10: Celková hodnota | F10: =SUBTOTAL(109,Vstupenky[Odhadovaná príjmy]) -> 1,936.00 EUR | G10: =SUBTOTAL(109,Vstupenky[Skutočné príjmy]) -> 1,831.00 EUR
A11: V bunke napravo je označenie Reklamy v programe. | B11: REKLAMY V PROGRAME
A12: Do tabuľky začínajúcej v bunke napravo zadajte odhadovaný a skutočný počet reklám v programe a ceny za reklamy. Odhadované a skutočné príjmy z reklamy sa vypočítajú automaticky. Ďalší pokyn sa nachádza v bunke A17. | B12: Odhadovaný počet | C12: Skutočný počet | D12: Typ | E12: Cena | F12: Odhadovaná príjmy | G12: Skutočné príjmy
B13: 12 | D13: Titulné strany | F13: =B13*E13 -> 0.00 EUR | G13: =C13*E13 -> 0.00 EUR
C14: 158 | D14: Polstrany | F14: =B14*E14 -> 0.00 EUR | G14: =C14*E14 -> 0.00 EUR
B15: 4 | D15: Štvrťstrany | F15: =B15*E15 -> 0.00 EUR | G15: =C15*E15 -> 0.00 EUR
B16: Celková hodnota | F16: =SUBTOTAL(109,ReklamyVPrograme[Odhadovaná príjmy]) -> 0.00 EUR | G16: =SUBTOTAL(109,ReklamyVPrograme[Skutočné príjmy]) -> 0.00 EUR
A17: V bunke napravo je označenie Vystavovatelia a predajcovia. | B17: VYSTAVOVATELIA A PREDAJCOVIA
A18: Do tabuľky začínajúcej v bunke napravo zadajte odhadovaný a skutočný počet vystavovateľov a predajcov a ceny za stánky. Odhadované a skutočné príjmy sa vypočítajú automaticky. Ďalší pokyn sa nachádza v bunke A23. | B18: Odhadovaný počet | C18: Skutočný počet | D18: Typ | E18: Cena | F18: Odhadovaná príjmy | G18: Skutočné príjmy
B19: 23 | D19: Veľké stánky | F19: =B19*E19 -> 0.00 EUR | G19: =C19*E19 -> 0.00 EUR
B20: 354 | D20: Stredne veľké stánky | F20: =B20*E20 -> 0.00 EUR | G20: =C20*E20 -> 0.00 EUR
B21: 56 | D21: Malé stánky | F21: =B21*E21 -> 0.00 EUR | G21: =C21*E21 -> 0.00 EUR
B22: Celková hodnota | F22: =SUBTOTAL(109,VystavovateliaAPredajcovia[Odhadovaná príjmy]) -> 0.00 EUR | G22: =SUBTOTAL(109,VystavovateliaAPredajcovia[Skutočné príjmy]) -> 0.00 EUR
A23: V bunke napravo je označenie Predaj položiek. | B23: PREDAJ POLOŽIEK
A24: Do tabuľky začínajúcej v bunke napravo zadajte odhadovaný a skutočný počet predaných položiek a ceny za položky. Odhadované a skutočné príjmy sa vypočítajú automaticky. | B24: Odhadovaný počet | C24: Skutočný počet | D24: Typ | E24: Cena | F24: Odhadovaná príjmy | G24: Skutočné príjmy
D25: Položky | F25: =B25*E25 -> 0.00 EUR | G25: =C25*E25 -> 0.00 EUR
B26: 123 | D26: Položky | F26: =B26*E26 -> 0.00 EUR | G26: =C26*E26 -> 0.00 EUR
D27: Položky | F27: =B27*E27 -> 0.00 EUR | G27: =C27*E27 -> 0.00 EUR
B28: 13 | D28: Položky | F28: =B28*E28 -> 0.00 EUR | G28: =C28*E28 -> 0.00 EUR
B29: Celková hodnota | F29: =SUBTOTAL(109,PredajPoložiek[Odhadovaná príjmy]) -> 0.00 EUR | G29: =SUBTOTAL(109,PredajPoložiek[Skutočné príjmy]) -> 0.00 EUR

Sheet Súhrn ziskov a strát
A1: Súhrn zisku a straty a graf zobrazujúci celkové príjmy a výdavky v tomto hárku sa aktualizujú automaticky. V bunkách napravo sa automaticky aktualizuje nadpis hárka. V bunkách G1 a G2 je podnadpis. V bunkách v tomto stĺpci na nachádzajú užitočné pokyny na používanie tohto hárka. Ďalší pokyn je v bunke A3. | B1: =Výdavky!B1 -> Rozpočet podujatia Názov podujatia | G1: SÚHRN
G2: zisku a straty
A3: V bunke E3 je pruhový graf porovnávajúci odhadované príjmy a výdavky so skutočnými príjmami a výdavkami. | E3: V tejto bunke je pruhový graf zobrazujúci porovnanie odhadovaných príjmov a výdavkov so skutočnými príjmami a výdavkami.
A4: Tabuľka so súhrnom rozpočtu začínajúca v bunke napravo sa aktualizuje automaticky. Ďalší pokyn je v bunke A8. | B4: Spolu | C4: Odhadované | D4: Skutočné
B5: Celkové príjmy | C5: =Príjmy!F4 -> 1,936.00 EUR | D5: =Príjmy!G4 -> 1,831.00 EUR
B6: Celkové výdavky | C6: =Výdavky!G4 -> 882.00 EUR | D6: =Výdavky!H4 -> 333.00 EUR
A8: Celkový odhadovaný zisk alebo strata v bunke C8 a celkový skutočný zisk alebo strata v bunke D8 sa vypočítajú automaticky. | B8: Celkový zisk (alebo strata) | C8: =C5-C6 -> 1,054.00 EUR | D8: =D5-D6 -> 1,498.00 EUR
